{"text_format":"2","workbook":"xlsx","n_sheets":2,"sheets":["Anbaqiya and Boori","Summary of Cost"],"not_rendered":{"charts":0,"images":0,"macros":0,"external_links":0,"defined_names":2,"comments":0,"pivot_tables":0},"unopened":[],"bounds":{"document_bytes":16777216,"sheet_cells":100000,"run_cost":"one","rows_first":2000,"rows_last":500,"rows_between":2000,"halvings":0,"cell_chars":16384,"cell_head_chars":4096},"cells_cut":0,"cells_raw":0,"read":"whole","date_system":"1900"}

{"sheet":"Anbaqiya and Boori","index":0,"n_rows":100,"n_cols":13,"rows_kept":100,"cut":false,"hidden":false,"merged":[[22,0,22,5],[11,0,12,0],[13,0,14,0],[15,0,16,0],[17,0,18,0],[19,0,20,0],[21,0,21,4],[9,0,10,0],[0,0,0,5],[1,0,1,5],[3,0,4,0],[5,0,6,0],[7,0,8,0],[24,0,24,5],[25,0,25,5],[27,0,28,0],[29,0,30,0],[31,0,32,0],[33,0,34,0],[36,0,37,0],[38,0,39,0],[40,0,41,0],[42,0,43,0],[44,0,44,4],[47,0,47,5],[48,0,48,5],[49,0,49,5],[51,0,52,0],[53,0,54,0],[55,0,56,0],[57,0,58,0],[59,0,60,0],[61,0,62,0],[63,0,64,0],[65,0,66,0],[67,0,68,0],[69,0,70,0],[71,0,72,0],[73,0,74,0],[75,0,76,0],[77,0,78,0],[79,0,80,0],[81,0,82,0],[93,0,94,0],[95,0,96,0],[97,0,98,0],[99,0,99,4],[83,0,84,0],[85,0,86,0],[87,0,88,0],[89,0,90,0],[91,0,92,0]]}
["ITB 223/16 Rehabilitation of Al-Anbaqiya & Al-Boori Water Complex (200m3/hr), Al-Muqdadiya District, Dyala Governorate"]
["تأهيل مجمع ماء العنبكية والبوري سعة 200م3/سا - قضاء المقدادية / محافظة ديالى"]
["#","Item Description","Unit","Qty","Unit Price $","Total Price $",{"$nulls":4},"Please fill the unit price only for all three locations "]
[1,"Supply and install the Chlorine system (1 Ea) including Chlorine device (capacity 2 kg - no./2) type Aldoz with the Booster pump (2 Ea) type (Caprari, GRUNDFOSE, KSB, WILO or any equivalent) Power=0.55kw ,Q=1.8m3/h,  Head= 56m) with all requirements and accessories to perform the work as per the specifications and instructions of Supervisor Engineer.","EA",1,null,{"$f":"D4*E4","v":0},{"$nulls":6},"الرجاء تعبئة خانة سعر الوحدة فقط لكل المواقع الثلاثة "]
[null,"تجهيز ونصب منظومة الكلور (عدد/1) وتشمل جهاز كلور سعة (2كيلوغرام ) (عدد/2 ) ماركة الدوزمع البوستر (عدد/2) نوع (Caprari, GRUNDFOSE, KSB, WILO او مايعادلها)  وبمواصفات (P=0.55kw ,Q=1.8m3/h, H= 56m) مع كل مايلزم لأنجاز العمل بصورة جيدة وحسب المواصفات الفنية وتوجيهات المهندس المشرف"]
[2,"Supply and install  new Main Control Board consist of:         1. Contactors /4 Ea -150 Amps;                                             2. Contactor /2 Ea - 100 Amps;                                             3. Overload/2 Ea-100 Amps, with time-regulator and phase filler) 4. Contactor /6 Ea - 70 Amps for the Air compressors 5. Overload /2 Ea - 50 Amps; with time-regulator & phase filler.   6. Contactor / 12 Ea - 32 Amps with Over load/Ea12 - accroding to the load for the boosters, Alum  boosters and mixers with phase filler, and timers                                         7. 400 Amps Circuit Breaker for the assembly,                         8. 110 Amps Circuit Breaker/4 for each suction pump            9.  50 Amps Circuit Breaker/7Ea  for the rest of the system (slow/fast mixers, Alum, and dosing boosters building and admin. facility). All supplied materials must be (Hyundai or any equivalent) with protection devices, volt-meter and current-meter gauges with all work requirements per the Iraqi water specifications and approved and instructed by the Supervisor Engineer","EA",1,null,{"$f":"D6*E6","v":0}]
[null,"تجهيز ونصب لوحة السيطرة الرئيسية جديدة  وتشمل ( كونتكتر عدد/4 حجم 150 امبير مع كونتكتر عدد/2 حجم 110امبير مع اوفر لود حجم 100 امبير عدد/2 مع تايمر مع فيز فلر) مع كونتكتر حجم 70 امبير عدد/6 لضاغطات الهواء مع اوفر لود حجم 50 امبير عدد/2مع التايمر مع فيز فلر مع كونتكتر حجم 32 امبير عدد/12 مع اوفر لود عدد/12 وحسب الحمل للبوسترات وزارقات الشب والخلاطات بالكامل مع فيز فلر للمجموعة مع التايمرات مع قاطع رئيسي حجم 400 امبير وقواطع دورة حجم 110 امبير عدد/4 لكل مضخة سحب ودفع مع تجهيز قواطع دورة حجم 50 امبير عدد/7 لباقي المجموعة (خلاطات بطى وسريع وشب وزارقات وبوسترات والبناية والادارة) على ان تكون المواد المجهزة نوع هونداي حصرآ مع السلكرات واجهزة الحماية وكيجات الفولتية والامبيرية مع كل مايلزم لأنجاز العمل بصورة جيدة وحسب المواصفات الفنية  المعتمدة من قبل مديرية الماء العراقية وحسب توجيهات المهندس المشرف ",null,null,null,0]
[3,"Supply and install Step-up voltage Regulator, capacity 250 KVA with all requirements to perform the work per the specifications and instruction of Supervisor Engineer ","EA",1,null,0]
[null,"تجهيز ونصب رافعة فولتية سعة 250 كي في  اي مع كل مايلزم لأنجاز العمل بصورة جيدة وحسب المواصفات الفنية وتوجيهات المهندس المشرف",null,null,null,0]
[4,"Supply, install and operate Booster pumps Q=200 m3/hr; Head= 60m type (Caprari, GRUNDFOSE, KSB, WILO or anyor equivalent) with all requirements and accessories to perform all works after approval of technical specifications and the Certificate of Origin according to the instructions of the Supervision Committee.","EA",2,null,0]
[null,"تجهيز ونصب وتركيب وتشغيل مضخات دفع سعة 200م3/سا × 60م منشأ ايطالي نوع  نوع (Caprrari, GRUNDFOSE, KSB, WILO او مايعادلها)  مع كل مايلزم لأنجاز العمل بصورة جيدة وحسب المواصفات الفنية مع شهادة المنشأ وبمصادقة وتوجيهات لجنة الأشراف"]
[5,"Supply, install, and operate Suction pump 220 m3/hr.; Head= 20m type (Caprari, GRUNDFOSE, KSB, WILO or any equivalent) with all requirements and accessories to perform all works after approval of technical specifications and the Certificate of Origin according to the instructions of the Supervision Committee.","EA",2,null,0]
[null,"تجهيز ونصب وتركيب وتشغيل مضخات سحب سعة 220م3/سا × 20م  نوع (Caprari, GRUNDFOSE, KSB, WILO او مايعادلها)  مع كل مايلزم لأنجاز العمل بصورة جيدة وحسب المواصفات الفنية  مع شهادة المنشأ وبمصادقة وتوجيهات لجنة الأشراف"]
[6,"Supply and install Submersible pump (60m3/hr x 20m) with the Starter and cable, with Certificate of Origin. Price includes provision of maintenance works for the pipes required to pump basin water (Sledge and Seubmerse) to the nearest discharging point (with construction of 0.6x0.6 m manhole). If the distance between the basin and the discharging point exceeds 10m, then a mesh to be installed around the Submersible pump with all accessories required to perform and operate the pump and all work requirements per the specifications and instruction of Supervisor Engineer ","EA",1,null,0]
[null,"تجهيز ونصب غاطس  بمواصفات (60م3/س ×20م )  مع الستارتر والكيبل الخاص به مع شهادة المنشأ  شاملا السعر صيانة الانابيب اللازمة لتصريف مياه حوض (التغطيس والاطيان )الى اقرب نقطة تصريف  (مع عمل منهول بابعاد 0.6م×0.6م) اذا زادت المسافة مابين الحوض والنهر عن 10م )مع عمل مشبك محيط بالغاطس مع كافة الملحقات اللازمة للربط والتشغيل مع كل مايلزم لأنجاز العمل بصورة جيدة وحسب المواصغات الفنية وتوجيهات المهندس المشرف ",null,null,null,0]
[7,"Supply and connection f the following cables:"]
[null,"تجهيز وربط وتركيب ومد الكيبلات التالية:"]
["A","Cable type 4x25 mm2 inside the trench to the Suction pumps with all requirements to perform the work per the specifications and instruction of supervising engineer.","L.M.",400,null,0]
[null,"كيبل (4*25 ) ملم2 بواسطة ترينج لمضخات السحب مع تجهيز كل مايلزم لانجاز العمل  وحسب المواصفات الفنية و توجيهات المهندس المشرف"]
["B","Cable type 4X50 mm2 by trench to the push pumps with all requirements to perform the work per the specifications and instruction of supervising engineer.","L.M.",60,null,0]
[null,"تجهيز وربط كيبل (4*50) ملم2 بواسطة ترينج لمضخات الدفع مع كل مايلزم لأنجاز العمل بصورة جيدة وحسب المواصغات الفنية وتوجيهات المهندس المشرف"]
["Sub Total Cost of Al- Anbaqiya & Al-Boori water complex in US Dollars",{"$nulls":4},{"$f":"SUM(F4:F21)","v":0}]
[]
[]
["Rehabilitation of Al-Muqdadiya Water Complex (3,000 m3/h), Al-Muqdadiyah District, Dyala Governorate"]
["تأهيل مجمع ماء المقدادية / محافظة ديالى"]
["#","Item Description","Unit","Qty","Unit Price $","Total Price $"]
[1,"Supply tools, materials and man power to demolish the upper cover of the tank with dimensions (33x33x0.2)m by air compressor drills with all work completion requirements per the specifications and instructions of supervisig engineer","Day",10,null,{"$f":"D28*E28","v":0}]
[null,"تكسير غطاء الخزان العلوي بابعاد (33x33x0.2)  بواسطة كمبريسر هواء مع تجهيز كل ما يلزم لانجاز العمل بصورة جيدة و حسب المواصفات الفنية وتوجيهات المهندس المشرف"]
[2,"Provide (10) labor, Lifting Winch, Loading Truck and all what required to remove the remaining concrete parts and Debris from inside the ground of the existed tank to the specified areas out of the site as instructed by the local authority. ","Day",10,null,{"$f":"D30*E30","v":0}]
[null,"تاجير عمال عدد (10) مع ونج رفع مع سيارة حمل لرفع الانقاض مو داخل الخزان الارضي الى خارج المشروع مع تجهيز كل ما يلزم لانجاز العمل بصورة جيدة وحسب المواصفات الفنية وتوجيهات المهندس المشرف"]
[3,"Provision of tools and technicians to install ٍ steel gates with dimensions (2.5x2.5)m and 6 mm thick steel plate, and to paint the gates with two layers of Anti-corrosion paint and oil paint, with all requirements to perform the work per the specifications and instruction of supervising engineer ","EA",2,null,0]
[null,"تجهيز العمال المختصين و المواد اللازمة لغرض عمل بوابات حديد بابعاد (2.5x2.5x) وبسمك 6 ملم من البليت مطلية بطبقتين من الرادليت مع الطلاء الجيد بالصبغ الدهني الغير سام من الجهتين مع تجهيز كل ما يلزم لانجاز العمل بصورة جيدة وحسب المواصفات الفنية وتوجيهات المهندس المشرف"]
[4,"Supply materials, tools and man power to pouring reinforced concrete for the ceiling of the ground tank by using Suluphate Resistant cement and mix ratio (1:2:4), concrete thickness (20cm) steel reinforcement two layers eith details; (Dia. 10mm@15cm - 2 way and Dia. 12mm@15cm - 2 way) as per instruction of the Supervisor Engineer","m3",218,null,0]
[null,"تجهيز المواد اللازمة لعمل صبة مسلحة خرسانية لسقف الخزان الارضي وبسمك 20 سم وبنسبة خلط (1:2:4) باستخدام السمنت المقاوم للاملاح وحديد التسليح قطر (12ملم و 10 ملم) على ان يكون التسليح بطبقتين وبمسافة 15 سم بين القضبان مع تجهيز كل ما يلزم لانجاز العمل حسب المواصفات وتوجيهات المهندس المشرف"]
[null,"Maintenance works for the Fliters         أعمال صيانة الفلاتر "]
[5,"Supply and install electrical  gate valve for the Sledge outlet with power (0.70-1.5) KW and 500mm Actuator with Starter and cable (4x6)mm length 30m. With all requirements to perform the work per the specifications and instruction of supervising engineer.","EA",8,null,0]
[null,"تجهيز ونصب قفل كهربائي للاطيان قدرة (0.75 - 1.5) كيلو واط و Actuator حجم 500 ملم مع الستارتر الخاص به والكيبل بطول 30 م وحجم (6x4) ملم مع كل مايلزم لأنجاز العمل بصورة جيدة وحسب المواصفات الفنية وتوجيهات المهندس المشرف"]
[6,"Supply materials, tools and man power to install electrical  gate valve for the fliteration with power (0.70-1.5) KW and 500mm Actuator with Starter and cable (4x6)mm length 30m. With all requirements to perform the work per the specifications and instruction of supervising engineer.","EA",8,null,0]
[null,"تجهيز ونصب قفل كهربائي للترشيح قدرة (0.75 - 1.5) كيلو واط و Actuator حجم 500 ملم مع الستارتر الخاص به والكيبل بطول 30 م وحجم (6x4) ملم مع كل مايلزم لأنجاز العمل بصورة جيدة وحسب المواصفات الفنية وتوجيهات المهندس المشرف"]
[7,"Supply and install electrical gate valve for the back wash water inlet with power (0.70-1.5) KW and 500mm, and Actuator with the Starter and cable (4x6)mm length 30m. With all requirements to perform the work per the specifications and instruction of the Supervisor Engineer.","EA",8,null,0]
[null,"تجهيز ونصب قفل كهربائي لدخول ماء الغسيل قدرة (0.75 - 1.5) كيلو واط و Actuator حجم 500 ملم مع الستارتر الخاص به والكيبل بطول 30 م وحجم (6x4) ملم مع كل مايلزم لأنجاز العمل بصورة جيدة وحسب المواصفات الفنية وتوجيهات المهندس المشرف"]
["A","Supply and install washing electrical gate valve for the outlet back wash water of the fliteration with power (0.70-1.5) KW and 500mm, and required Actuator with the Starter and cable (4x6)mm length 30m. With all requirements to perform the work per the specifications and instructions of the Supervisor Engineer.","EA",8,null,0]
[null,"تجهيز ونصب قفل كهربائي للخروج ماء الغسيل قدرة (0.75 - 1.5) كيلو واط و Actuator حجم 500 ملم مع الستارتر الخاص به والكيبل بطول 30 م وحجم (6x4) ملم مع كل مايلزم لأنجاز العمل بصورة جيدة وحسب المواصفات الفنية وتوجيهات المهندس المشرف"]
["Total Cost of Al-Muqdadiyah water project in US Dollars",{"$nulls":4},{"$f":"SUM(F28:F44)","v":0}]
[]
[]
[]
["Rehabilitation of Burkainiya Water Complex (50 m3/hr), Al-Muqdadiya District, Dyala Governorate"]
["تاهيل مجمع ماء بركينية سعة 50م3/سا - قضاء المقدادية / محافظة ديالى"]
["#","Item Description","Unit","Qty","Unit Price $","Total Price $"]
[1,"Provision of  maintenance work with necessary materials and manpower to repair and complete the Sedimentation Tank with all steel work for the damaged areas besides the deep cleaning and painting by 3 layers of Epoxy from inside and 3 layers of oil paint from outside, and complete all works requirements as per the directions of the Supervisor Engineer","EA",1,null,{"$f":"D52*E52","v":0}]
[null,"صيانة  خزان الترسيب وتشمل الفقرة  القيام بكافة اعمال الحدادة اللازمة للمناطق المتضررة  مع التنظيف الجيد والطلاء بثلاث طبقات بمادة الايبوكسي من الداخل وبثلاث طبقات من البوية من الخارج مع  كل مايلزم لانجاز العمل بصوره وحسب توجيهات المهندس المشرف"]
[2,"Supply materials, tools and manpower to demolish the (70x50)cm concrete slab under the tank, and to repair the slab on grade (SOG) and pouring concrete for 4 columns (4H x 0.5Wx0.5L) m. materials to be used for the columns: Steel reinforcement :1/4\" and Suluphat resistant cement","L.S.",1,null,{"$f":"D54*E54","v":0}]
[null,"تكسير الصبه الكونكريتيه المسلحه تحت الخزان بارتفاع ( 70 ) سم وعرض (50) سم وتصليح الصبه الارضيه وعمل (4) دنك مسلحه بطول 4 متر وعرض 50 سم من 4 جهات وتضمن الفقرة اجور العمل والمواد وتشمل حديد التسليح 1/4 انج مع عمل اتاري لربط شيش التسليح واستخدام مونة الاسمنت المقاوم للرطوبه حسب توجيهات المهندس المشرف "]
[3,"Supply and replacement of the galvanized steel pipes from size 4\" to the size 6\" included in the Suction pumps, booster pumps and filters with connecting impact dumper and check valves (Butterfly gate valve size 6\" between Booster pumps and the Tank. Price includes labor cost, steel, welding works and all what required to complete the work according to the instructions of Supervisor Engineer. ","L.S.",1,null,0]
[null,"تجهيز وتبديل انابيب الحديد داخل المجمع من 4\" الى 6 \" حديد مغلون والتي تشمل من مضخات السحب ومضخات الدفع والفلاتر مع ربط مخفف صدمه مع جك ولفات مع اقفال فراشه 6\"  مضخات السحب الى الخزان مع ربط مخفف صدمه مع جك ولفات مع عكوسه مع اقفال فراشه  6\" وتضمن الفقره اجور المواد واعمال الحداده والحام وكل مايلزم لاانجاز العمل بشكل صحيح وجيد وحسب توجيهات المهندس المشرف "]
[4,"Supply tools, materials and man power to install elcetrical MDB includes main cercuit breaker with 4 starters for the pulling and pushing pumps and starters for the Alum and chlorine system","L.S.",1,null,0]
[null,"تجهيز ونصب لوحه سيطره كهربائية رئيسيه متكامله وتشمل تجهيزقاطع رئيسي مع  استارترات (4 ) لمضخات السحب والدفع مع استارترات لمنضومة الشب والكلور "]
[5,"Supply and install Booster pump (Caprrari, GRUNDFOSE, KSB, WILO or any equivalent) Q= 50 m3/hr.; Head =50m and the Starter with all requirements to perform the work per the specifications and instruction of supervising engineer.","EA",2,null,0]
[null,"تجهيز ونصب مضخه دفع  ( 50 م3 /س × 50 م ) مع ستارتر على ان تكون المضخه نوع (Caprrari, GRUNDFOSE, KSB, WILO او مايعادلها ) مع كل مايلزم لربط المضخه وحسب توجيهات المهندس المشرف "]
[6,"Supply and install Suction pump Q= 50 m3/hr; H= 20m type (Caprrari, GRUNDFOSE, KSB, WILO or any equivalent) and starter with all requirements to perform the work per the specifications and instruction of the Supervisor Engineer.","EA",2,null,0]
[null,"تجهيز ونصب مضخه سحب ( 50 م /س × 20 م ) مع ستارتر على ان تكون المضخه نوع  (Caprrari, GRUNDFOSE, KSB, WILO او مايعادلها) ) مع كل مايلزم لربط المضخه وحسب توجيهات المهندس المشرف "]
[7,"Supply of sand and gravel for the filters. Materials must pass the required laboratory tests and be according to gradations used in water complexes under the instructions of the Supervisor Engineer. ","M3",7,null,0]
[null,"تجهيز رمل وحصى فلاتر وذونوعية جيدة وتكون خاضعة للفحوصات المختبرية وحسب التدرجات المعتمده في المجمعات المائيه وحسب توجيهات المهندس المشرف.  "]
[8,"Supply and install Alum dosing pump (70 ltr/hr) with the mixer and PVC tank 1000 ltr with supplying quick mixing mixer and replacement of all old PVC connections with new ones as directed by Supervisor Engineer","EA",2,null,0]
[null,"تجهيز ونصب زراقة شب سعة ( 70 ) لتر /ساعه مع خلاط خاص مع خزان بلاستيكي ( 1000 ) لتر مع تجهيزخلاط مزج سريع مع ابدال كافة التوصيلات القديمه ( بلاستك PVC ) باخرى جديده وحسب توجيهات المهندس المشرف "]
[9,"Supply and install chlorine (1 kg/hr) and full chlorine system. Work includes supplying pipes and PVC valves with booster and all connections ","EA",1,null,0]
[null,"تجهيز ونصب جهاز كلور حجم 1 كيلو غرام مع عمل منضومه  كلور متكامله ويشمل العمل تجهيز الانابيب واقفال (بلاستك PVC) مع بوستر واجراء اعمال التوصيل بالكامل وحسب توجيهات المهندس المشرف "]
[10,"Supply materials, tools and man power to install voltage riser of capacity 250 KVA with change-over with all requirements to perform the work including all connecting cables per the specifications and instruction of supervising engineer ","EA",1,null,0]
[null,"تجهيز ونصب رافع فولتية حجم 250 KVA مع جنج اوفر وتضمن الفقره كافة الموصلات ( الكببلات ) مع معدات الربط وتضمن الفقره اجور العمل والمواد وكل مايلزم لاتمام العمل وبشكل جيد وحسب توجيهات المهندس المشرف "]
[11,"Supply tools, materials and man power to install  Lighting poles 7m height - 4 inches dia. with projectors fixture, Mercury lamps  size 125 watt. Work includes all wiring and electrical connections required to perform the work as dirctred by the supervising engineer.","EA",8,null,0]
[null,"تجهيز ونصب اعمدة اناره بارتفاع (7 )م قطر 4 انج مع تركيب بروجكترات حجم ( 125 ) واط زئبقي وتشمل الفقره كافة الاسلاك والتوصيلات الكهربئيه الازمه لانجاز العمل وحسب توجيهات المهندس المشرف"]
[12,"Supply tools, materials and man power to build a BRC fence, 3mm thick, 2.3m net height with columns each 2.5m fixed by concrete with (2.3x3)m gate with all work requirements according to the instructions of Supervisor Engineer ","L.M.",62,null,0]
[null,"القيام ببناء سياج من (BRC) بسمك (3) ملم بارتفاع صافي (2،30) م مع عمل دنك كل (2،5) م وتثبيتها بصبة كونكريتية مع تجيهز باب بابعاد (2،30*3) مع كل مايلزم لانجاز العمل  بالسياج وحسب توجيهات المهندس المشرف"]
[13,"Supply and install 150 KVA transformer with 250 Amp cercuit breaker including poles cables and all connection accessories (Link Switch 11 KV, Link Fuse 20 Amp, Cups, Spindles, high voltage poles/2 - H shape and steel base erection for the transformer). ","EA",1,null,0]
[null,"تجيهز ونصب محولة (150كي في أي) مع قاطع دورة قدرة (250) امبير وتشمل الفقرة الاعمدة والاسلاك وملحقات الخاصة بالربط مع لنك سويج (11) الف فولت ولنك فيوز (20) مب وفناجين وسنبدل واعمدة ضغط عالي عدد(2) على شكل (H) مع تركيب حديد وبطول (2) لتركيب المحولة عليها  "]
[14,"Provision of  maintenance work with necessary materials and manpower to repair 75 KVA generator including replacing the self-ignition, pump and nozzles, maintaining the control panel, supplying 250 Amp change over, 2000 ltr fuel tank with piping from the fuel tank to the Generator. Also Constructing generator sun shade (2.5x3.3) m with pouring concrete for the shade ground Area as instructed by the Supervisor Engineer.","EA",1,null,0]
[null,"صيانة مولدة سعة ( 75 ) KVA وتشمل تبديل سلف مع بم ونوزلات وصيانه لوحة السيطره الخاصة بها وتجهيز جنج اوفر 250 A مع خزان وقود سعة 2000 لتر مع اعمال الانابيب من خزان الوقود الى المولده مع عمل سقيفه بابعاد 2.5 ×3.3 متر مع صب الارضيه بمستوى ارضية المجمع وبنفس ابعاد السقيفه وتضمن اجور العمل والمواد الازمه لتشغيل المولده  وحسب توجيهات المهندس"]
[15,"Supply tools, materials and man power necessary for the (110Hx60W)cm excavations for the 160mm pipes with laying and connecting pipes and filling by 10 cm of clean soil and back filling the excavated pipe line and inserting warning tape according to the instructions of supervising engineer","L.M.",2000,null,0]
[null,"قيام باعمال الحفريات الترابيه الانابيب قطر 160 ملم وبعمق 110 سم وعرض 60 سم مع مد وتركيب ريط الانابيب مع الدفن الانابيب بالتراب النضيف 10 سم مع دفن المسار مع وضع شريط تحضيري وحسب توجيهات المهندس الشرف",null,null,null,0]
[16,"Supply pipes 160mm dia. - 10 Bar pressure. Price includes lab testing fees and transportation","L.M.",2000,null,0]
[null,"تجهيز انابيب قطر 160 ملم ضغط 10 بار وتضمن الفقره اجور الفحص المختبري واجور النقل "]
[17,"Supply pipes 110mm dia. - 10 Bar pressure. Price includes lab testing fees and transportation","L.M.",3000,null,0]
[null,"تجهيز انابيب قطر 110 ملم ضغط 10 بار وتضمن الفقره اجور الفحص المختبري واجور النقل"]
[18,"Supply tools, materials and man power necessary for the (110Hx60W)cm excavations for the 110mm pipes with laying and connecting pipes and filling by 10 cm of clean soil and back filling the excavated pipe line and inserting warning tape according to the instructions of supervising engineer","L.M.",3000,null,0]
[null,"قيام باعمال الحفريات الترابيه الانابيب قطر 110 ملم وبعمق 110 سم وعرض 60 سم مع مد وتركيب ربط الانابيب مع الدفن الانابيب بالتراب النضيف 10 سم مع دفن المسار مع وضع شريط تحضيري وحسب توجيهات المهندس المشرف"]
[19,"PVC division 160x110x160 mm good quality","EA",3,null,0]
[null,"تقسيم بلاستك كبس  160 ملم ×  110× 160 ملم بلاستك "]
[20,"160mm Connection Clamp","EA",5,null,0]
[null,"تجهيز قفيص ربط 160 ملم "]
[21,"110mm Connection Clamp","EA",10,null,0]
[null,"تجهيز قفيص ربط 110 ملم"]
[22,"110mm Valve","EA",2,null,0]
[null,"تجهيز قفل 110 ملم "]
[23,"160mm Valve","EA",2,null,0]
[null,"قفل 160 ملم "]
[24,"Supply tools, materials and man power to construct a manhole (1x1)m reinforced concrete, wall and base thickness 0.2 m, steel  reinforcing bar (Rebar) Dia12mm, with concrete cover under the direction of the Supervisor Engineer.","EA",4,null,0]
[null,"بناء منهول بابعاد ( 1م × 1م ) كونكريت مسلح بسمك 20 سم جدران والقاعده باستخدام حديد تسليح قطر 12ملم مع غطاء كنكريتي وحسب توجيهات المهندس المشرف "]
["Sub Total Cost of  Burkainiya water project in US Dollars",{"$nulls":4},{"$f":"SUM(F52:F99)","v":0}]

{"sheet":"Summary of Cost","index":1,"n_rows":10,"n_cols":6,"rows_kept":10,"cut":false,"hidden":false,"merged":[[7,2,7,4],[8,2,8,4],[9,1,9,4],[2,1,2,5],[3,1,3,3],[3,4,3,5],[4,1,4,5],[5,2,5,4],[6,2,6,4]]}
[]
[]
[null,"Rehabilitation of three Water complexes in Al-Muqdadiya District, Diyala Governorate"]
[null,"Directorate of Water, Diyala",null,null,"الجهة المستفيدة: مديرية ماء ديالى"]
[null,"مشروع أعادة تأهيل ثلاثة مجمعات للماء في قضاء المقدادية, محافظة ديالى "]
[null,"No.","Name of water complex",null,null,"Total estimated  Price per School in USD"]
[null,1,"Rehabilitation of Al-Anbaqiya & Al-Boori Water Complex ((200m3/hr)",null,null,{"$f":"'Anbaqiya and Boori'!F22","v":0}]
[null,2,"Rehabilitation of Al-Muqdadiya Water Complex (3,000 m3/h)",null,null,{"$f":"'Anbaqiya and Boori'!F45","v":0}]
[null,3,"Rehabilitation of Burkainiya Water Complex (50 m3/hr)",null,null,{"$f":"'Anbaqiya and Boori'!F100","v":0}]
[null,"Total project estimated cost",null,null,null,{"$f":"SUM(F7:F9)","v":0}]